{"text_format":"1","workbook":"xlsx","n_sheets":2,"sheets":["Formulario","DBExcel"],"not_rendered":{"charts":0,"images":1,"macros":1,"external_links":0,"defined_names":0,"comments":0,"pivot_tables":0},"unopened":[],"bounds":{"document_bytes":16777216,"sheet_cells":100000,"rows_first":2000,"rows_last":500,"rows_between":2000,"halvings":0,"cell_chars":16384,"cell_head_chars":4096},"cells_cut":0,"cells_raw":0,"read":"whole","date_system":"1900"}

{"sheet":"Formulario","index":0,"n_rows":48,"n_cols":66,"rows_kept":48,"cut":false,"hidden":false,"merged":[[2,2,4,64],[9,2,10,64],[13,2,14,64],[15,22,17,64],[11,18,12,24],[11,5,12,6],[11,7,12,9],[11,2,12,4],[11,56,12,64],[11,10,12,17],[11,25,12,35],[11,36,12,38],[11,48,12,55],[11,46,12,47],[11,41,12,45],[11,39,12,40],[44,2,46,64],[21,22,23,64],[24,22,26,64],[30,22,32,64],[33,22,35,64],[36,22,38,64],[39,22,41,64],[39,15,41,21],[21,2,23,14],[39,2,41,14],[36,2,38,14],[33,2,35,14],[30,2,32,14],[24,2,26,14],[15,2,17,14],[15,15,17,21],[5,9,8,52],[18,22,20,64],[42,2,43,64],[18,15,20,21],[21,15,23,21],[24,15,26,21],[30,15,32,21],[33,15,35,21],[36,15,38,21],[18,2,20,14],[27,2,29,14],[27,15,29,21],[27,22,29,64]]}
[]
[null,"*Equipo de Gestión de la Información - EBR",null,null,null,null,null,null,null,null,null,null,null,null,null,null,null,null,null,null,null,null,null,null,null,null,null,null,null,null,null,null,null,null,null,null,null,null,null,null,null,null,null,null,null,null,null,null,null,null,null,null,null,null,null,null,null,null,null,null,null,null,null,null,null,"Versión: 1.1"]
[null,null,"FORMULARIO PARA EL AJUSTE DEL CURRÍCULO NACIONAL"]
[]
[]
[null,null,null,null,null,null,null,null,null,"A continuación, presentamos un cuestionario que permitirá recoger los aportes de la ciudadanía respecto al proceso de Ajuste Curricular, cuyo documento general está disponible en el siguiente link: http://www.minedu.gob.pe/curriculo/pdf/cn-documento-general-para-consulta.pdf. Los resultados de esta herramienta, se sistematizarán y serán tomados en cuenta para la elaboración de la versión final del Currículo Nacional ajustado, así como en la preparación y ejecución del proceso de implementación."]
[]
[]
[]
[null,null,"DATOS DEL ENCUESTADO:"]
[]
[null,null,"EDAD",null,null,null,null,"REGIÓN",null,null,null,null,null,null,null,null,null,null,"PROVINCIA / CIUDAD",null,null,null,null,null,null,null,null,null,null,null,null,null,null,null,null,null,"GÉNERO",null,null,null,null,"¿TIENE HIJOS?",null,null,null,null,null,null,"GRUPO AL QUE PERTENECE"]
[]
[null,null,"COMPLETANDO LAS PREGUNTAS DEL FORMULARIO:"]
[]
[null,null,"¿CUÁL ES SU OPINIÓN SOBRE LAS SIGUIENTES AFIRMACIONES?",null,null,null,null,null,null,null,null,null,null,null,null,"RESPUESTA\n(Seleccione la opción que se acerque a su opinión)",null,null,null,null,null,null,"DETALLE DE RESPUESTA\n(Para cada una de sus respuestas, usted deberá de detallar o justificar su elección, a fin de que el \najuste curricular esté lo más sustentado posible. Ampliar su respuesta en un máximo de 300 caracteres)"]
[]
[]
[null,null,"El documento me parece claro y suficientemente informativo."]
[]
[]
[null,null,"El enfoque por competencias me parece útil para el aprendizaje de los estudiantes."]
[]
[]
[null,null,"Los estándares de aprendizajes son sencillos de usar y adecuados para los docentes."]
[]
[]
[null,null,"La distribución de horas en los planes de estudios, es la más conveniente para el aprendizaje integral de los estudiantes."]
[]
[]
[null,null,"La evaluación formativa de competencias fortalece los procesos de aprendizaje de los estudiantes."]
[]
[]
[null,null,"La tutoría y la orientación educativa aporta al desarrollo integral de los estudiantes."]
[]
[]
[null,null,"Las TIC contribuyen a optimizar los aprendizajes y a hacer más efectivo el trabajo pedagógico en el aula."]
[]
[]
[null,null,"El Currículo Nacional debe diversificar los aprendizajes según las características de los estudiantes de cada región."]
[]
[]
[null,null,"COMENTARIOS ADICIONALES SOBRE EL AJUSTE CURRICULAR:"]
[]
[]
[]
[]
[null,null,null,null,null,null,null,null,null,null,null,null,null,null,null,null,null,null,null,null,null,null,null,null,null,null,null,null,null,null,null,null,null,null,null,null,null,null,null,null,null,null,null,null,null,null,null,null,null,null,null,null,null,null,null,null,null,null,null,null,null,null,null,null,null,{"$f":"IF($B$2=\"\",\"\",$B$2)","v":"*Equipo de Gestión de la Información - EBR"}]

{"sheet":"DBExcel","index":1,"n_rows":301,"n_cols":40,"rows_kept":301,"cut":false,"hidden":true,"merged":[]}
["ITEM","JUSTIFICAR","EDAD","GENERO","PADRE","GRUPO AL QUE PERTENECE",null,null,null,null,null,0,"REGION",1,"PROVINCIA / CIUDAD",null,"ID",{"$f":"Formulario!C12","v":"EDAD"},{"$f":"Formulario!H12","v":"REGIÓN"},{"$f":"Formulario!S12","v":"PROVINCIA / CIUDAD"},{"$f":"Formulario!AK12","v":"GÉNERO"},{"$f":"Formulario!AP12","v":"¿TIENE HIJOS?"},{"$f":"Formulario!AW12","v":"GRUPO AL QUE PERTENECE"},{"$f":"Formulario!C19","v":"El documento me parece claro y suficientemente informativo."},{"$f":"X1","v":"El documento me parece claro y suficientemente informativo."},{"$f":"Formulario!C22","v":"El enfoque por competencias me parece útil para el aprendizaje de los estudiantes."},{"$f":"Z1","v":"El enfoque por competencias me parece útil para el aprendizaje de los estudiantes."},{"$f":"Formulario!C25","v":"Los estándares de aprendizajes son sencillos de usar y adecuados para los docentes."},{"$f":"AB1","v":"Los estándares de aprendizajes son sencillos de usar y adecuados para los docentes."},{"$f":"Formulario!C28","v":"La distribución de horas en los planes de estudios, es la más conveniente para el aprendizaje integral de los estudiantes."},"La distribución de horas en los planes de estudios, es la más conveniente para el aprendizaje integral de los estudiantes.",{"$f":"Formulario!C31","v":"La evaluación formativa de competencias fortalece los procesos de aprendizaje de los estudiantes."},"La evaluación formativa de competencias fortalece los procesos de aprendizaje de los estudiantes.",{"$f":"Formulario!C34","v":"La tutoría y la orientación educativa aporta al desarrollo integral de los estudiantes."},"La tutoría y la orientación educativa aporta al desarrollo integral de los estudiantes.",{"$f":"Formulario!C37","v":"Las TIC contribuyen a optimizar los aprendizajes y a hacer más efectivo el trabajo pedagógico en el aula."},"Las TIC contribuyen a optimizar los aprendizajes y a hacer más efectivo el trabajo pedagógico en el aula.",{"$f":"Formulario!C40","v":"El Currículo Nacional debe diversificar los aprendizajes según las características de los estudiantes de cada región."},"El Currículo Nacional debe diversificar los aprendizajes según las características de los estudiantes de cada región.",{"$f":"Formulario!C43","v":"COMENTARIOS ADICIONALES SOBRE EL AJUSTE CURRICULAR:"}]
[{"$f":"ROW(A1)","v":1},null,null,null,null,null,null,null,null,null,null,{"$f":"IF(I2<>I1,L1+1,L1)","v":0},{"$f":"IF($A2=1,\"\",IF(LOOKUP($A2-1,L:L,I:I)=\"\",\"\",LOOKUP($A2-1,L:L,I:I)))","v":""},{"$f":"IF(I1=Formulario!$K$12,N1+1,N1)","v":2},{"$f":"IF($A2=1,\"\",IF(LOOKUP($A2-1,N:N,J:J)=\"\",\"\",LOOKUP($A2-1,N:N,J:J)))","v":""},null,{"$f":"INFO(\"DIRECTORIO\")&INFO(\"VERSION\")&INFO(\"VERSIONSO\")","v":"D:\\acarballido\\Documents\\15.0Windows (64-bit) NT 6.02"},{"$f":"IF(Formulario!$F$12=\"\",\"\",Formulario!$F$12)","v":""},{"$f":"IF(Formulario!$K$12=\"\",\"\",Formulario!$K$12)","v":""},{"$f":"IF(Formulario!$Z$12=\"\",\"\",Formulario!$Z$12)","v":""},{"$f":"IF(Formulario!$AN$12=\"\",\"\",Formulario!$AN$12)","v":""},{"$f":"IF(Formulario!$AU$12=\"\",\"\",Formulario!$AU$12)","v":""},{"$f":"IF(Formulario!$BE$12=\"\",\"\",Formulario!$BE$12)","v":""},{"$f":"IF(Formulario!$P$19=\"\",\"\",Formulario!$P$19)","v":""},{"$f":"IF(Formulario!$W$19=\"\",\"\",Formulario!$W$19)","v":""},{"$f":"IF(Formulario!$P$22=\"\",\"\",Formulario!$P$22)","v":""},{"$f":"IF(Formulario!$W$22=\"\",\"\",Formulario!$W$22)","v":""},{"$f":"IF(Formulario!$P$25=\"\",\"\",Formulario!$P$25)","v":""},{"$f":"IF(Formulario!$W$25=\"\",\"\",Formulario!$W$25)","v":""},{"$f":"IF(Formulario!$P$28=\"\",\"\",Formulario!$P$28)","v":""},{"$f":"IF(Formulario!$W$28=\"\",\"\",Formulario!$W$28)","v":""},{"$f":"IF(Formulario!$P$31=\"\",\"\",Formulario!$P$31)","v":""},{"$f":"IF(Formulario!$W$31=\"\",\"\",Formulario!$W$31)","v":""},{"$f":"IF(Formulario!$P$34=\"\",\"\",Formulario!$P$34)","v":""},{"$f":"IF(Formulario!$W$34=\"\",\"\",Formulario!$W$34)","v":""},{"$f":"IF(Formulario!$P$37=\"\",\"\",Formulario!$P$37)","v":""},{"$f":"IF(Formulario!$W$37=\"\",\"\",Formulario!$W$37)","v":""},{"$f":"IF(Formulario!$P$40=\"\",\"\",Formulario!$P$40)","v":""},{"$f":"IF(Formulario!$W$40=\"\",\"\",Formulario!$W$40)","v":""},{"$f":"IF(Formulario!$C$45=\"\",\"\",Formulario!$C$45)","v":""}]
[{"$f":"ROW(A2)","v":2},"Totalmente \nDe Acuerdo",{"$f":"A3+9-1","v":10},"M","SI","DOCENTE",null,null,null,null,null,{"$f":"IF(I3<>I2,L2+1,L2)","v":0},{"$f":"IF($A3=1,\"\",IF(LOOKUP($A3-1,L:L,I:I)=\"\",\"\",LOOKUP($A3-1,L:L,I:I)))","v":""},{"$f":"IF(I2=Formulario!$K$12,N2+1,N2)","v":3},{"$f":"IF($A3=1,\"\",IF(LOOKUP($A3-1,N:N,J:J)=\"\",\"\",LOOKUP($A3-1,N:N,J:J)))","v":""},null,{"$f":"SUM(R3:AN3)","v":23},{"$f":"IF(R2=\"\",1,0)","v":1},{"$f":"IF(S2=\"\",1,0)","v":1},1,1,1,1,1,1,1,1,1,1,{"$f":"IF(AD2=\"\",1,0)","v":1},1,1,1,1,1,1,1,1,1,1]
[3,"De Acuerdo",{"$f":"A4+9-1","v":11},"F","NO","ESTUDIANTE",null,null,null,null,null,0,"",{"$f":"IF(I3=Formulario!$K$12,N3+1,N3)","v":4},""]
[4,"Ni En Acuerdo / Ni En Desacuerdo",12,null,null,"NO CUENTA CON TRABAJO",null,null,null,null,null,0,"",{"$f":"IF(I4=Formulario!$K$12,N4+1,N4)","v":5},""]
[5,"En Desacuerdo",13,null,null,"RESPONSABLE DEL HOGAR",null,null,null,null,null,0,"",{"$f":"IF(I5=Formulario!$K$12,N5+1,N5)","v":6},"",null,null,null,null,null,null,null,null,null,null,null,null,null,{"$f":"COLUMN(AC5)","v":29}]
[6,"Totalmente \nEn Desacuerdo",14,null,null,"TRABAJADOR ONG",null,null,null,null,null,0,"",{"$f":"IF(I6=Formulario!$K$12,N6+1,N6)","v":7},""]
[7,null,15,null,null,"TRABAJADOR PRIVADO",null,null,null,null,null,0,"",{"$f":"IF(I7=Formulario!$K$12,N7+1,N7)","v":8},"",null,"MENSAJE:"]
[8,null,16,null,null,"TRABAJADOR PUBLICO",null,null,null,null,null,0,"",{"$f":"IF(I8=Formulario!$K$12,N8+1,N8)","v":9},"",null,{"$f":"IF($Q$3=0,\"¡EXCELENTE! HA COMPLETADO CORRECTAMENTE EL FORMULARIO, GRACIAS\",IF($Q$3=1,\"FALTA COMPLETAR 1 REGISTRO\",\"FALTA COMPLETAR \"&$Q$3&\" REGISTROS\"))","v":"FALTA COMPLETAR 23 REGISTROS"}]
[9,null,17,null,null,null,null,null,null,null,null,0,"",{"$f":"IF(I9=Formulario!$K$12,N9+1,N9)","v":10},"",null,{"$f":"IF(H1=\"\",\"Activar\",\"\")","v":"Activar"}]
[10,null,18,null,null,null,null,null,null,null,null,0,"",{"$f":"IF(I10=Formulario!$K$12,N10+1,N10)","v":11},"",null,{"$f":"IF(H1=\"\",\"Clic\",\"\")","v":"Clic"}]
[11,null,19,null,null,null,null,null,null,null,null,0,"",{"$f":"IF(I11=Formulario!$K$12,N11+1,N11)","v":12},""]
[12,null,20,null,null,null,null,null,null,null,null,0,"",{"$f":"IF(I12=Formulario!$K$12,N12+1,N12)","v":13},""]
[13,null,21,null,null,null,null,null,null,null,null,0,"",{"$f":"IF(I13=Formulario!$K$12,N13+1,N13)","v":14},""]
[14,null,22,null,null,null,null,null,null,null,null,0,"",{"$f":"IF(I14=Formulario!$K$12,N14+1,N14)","v":15},""]
[15,null,23,null,null,null,null,null,null,null,null,0,"",{"$f":"IF(I15=Formulario!$K$12,N15+1,N15)","v":16},""]
[16,null,24,null,null,null,null,null,null,null,null,0,"",{"$f":"IF(I16=Formulario!$K$12,N16+1,N16)","v":17},""]
[17,null,25,null,null,null,null,null,null,null,null,0,"",{"$f":"IF(I17=Formulario!$K$12,N17+1,N17)","v":18},""]
[18,null,26,null,null,null,null,null,null,null,null,0,"",{"$f":"IF(I18=Formulario!$K$12,N18+1,N18)","v":19},""]
[19,null,27,null,null,null,null,null,null,null,null,0,"",{"$f":"IF(I19=Formulario!$K$12,N19+1,N19)","v":20},""]
[20,null,28,null,null,null,null,null,null,null,null,0,"",{"$f":"IF(I20=Formulario!$K$12,N20+1,N20)","v":21},""]
[21,null,29,null,null,null,null,null,null,null,null,0,"",{"$f":"IF(I21=Formulario!$K$12,N21+1,N21)","v":22},""]
[22,null,30,null,null,null,null,null,null,null,null,0,"",{"$f":"IF(I22=Formulario!$K$12,N22+1,N22)","v":23},""]
[23,null,31,null,null,null,null,null,null,null,null,0,"",{"$f":"IF(I23=Formulario!$K$12,N23+1,N23)","v":24},""]
[24,null,32,null,null,null,null,null,null,null,null,0,"",{"$f":"IF(I24=Formulario!$K$12,N24+1,N24)","v":25},""]
[25,null,33,null,null,null,null,null,null,null,null,0,"",{"$f":"IF(I25=Formulario!$K$12,N25+1,N25)","v":26},""]
[26,null,34,null,null,null,null,null,null,null,null,0,"",{"$f":"IF(I26=Formulario!$K$12,N26+1,N26)","v":27},""]
[27,null,35,null,null,null,null,null,null,null,null,0,"",{"$f":"IF(I27=Formulario!$K$12,N27+1,N27)","v":28},""]
[28,null,36,null,null,null,null,null,null,null,null,0,"",{"$f":"IF(I28=Formulario!$K$12,N28+1,N28)","v":29},""]
[29,null,37,null,null,null,null,null,null,null,null,0,"",{"$f":"IF(I29=Formulario!$K$12,N29+1,N29)","v":30},""]
[30,null,38,null,null,null,null,null,null,null,null,0,"",{"$f":"IF(I30=Formulario!$K$12,N30+1,N30)","v":31},""]
[31,null,39,null,null,null,null,null,null,null,null,0,"",{"$f":"IF(I31=Formulario!$K$12,N31+1,N31)","v":32},""]
[32,null,40,null,null,null,null,null,null,null,null,0,"",{"$f":"IF(I32=Formulario!$K$12,N32+1,N32)","v":33},""]
[33,null,41,null,null,null,null,null,null,null,null,0,"",{"$f":"IF(I33=Formulario!$K$12,N33+1,N33)","v":34},""]
[34,null,42,null,null,null,null,null,null,null,null,0,"",{"$f":"IF(I34=Formulario!$K$12,N34+1,N34)","v":35},""]
[35,null,43,null,null,null,null,null,null,null,null,0,"",{"$f":"IF(I35=Formulario!$K$12,N35+1,N35)","v":36},""]
[36,null,44,null,null,null,null,null,null,null,null,0,"",{"$f":"IF(I36=Formulario!$K$12,N36+1,N36)","v":37},""]
[37,null,45,null,null,null,null,null,null,null,null,0,"",{"$f":"IF(I37=Formulario!$K$12,N37+1,N37)","v":38},""]
[38,null,46,null,null,null,null,null,null,null,null,0,"",{"$f":"IF(I38=Formulario!$K$12,N38+1,N38)","v":39},""]
[39,null,47,null,null,null,null,null,null,null,null,0,"",{"$f":"IF(I39=Formulario!$K$12,N39+1,N39)","v":40},""]
[40,null,48,null,null,null,null,null,null,null,null,0,"",{"$f":"IF(I40=Formulario!$K$12,N40+1,N40)","v":41},""]
[41,null,49,null,null,null,null,null,null,null,null,0,"",{"$f":"IF(I41=Formulario!$K$12,N41+1,N41)","v":42},""]
[42,null,50,null,null,null,null,null,null,null,null,0,"",{"$f":"IF(I42=Formulario!$K$12,N42+1,N42)","v":43},""]
[43,null,51,null,null,null,null,null,null,null,null,0,"",{"$f":"IF(I43=Formulario!$K$12,N43+1,N43)","v":44},""]
[44,null,52,null,null,null,null,null,null,null,null,0,"",{"$f":"IF(I44=Formulario!$K$12,N44+1,N44)","v":45},""]
[45,null,53,null,null,null,null,null,null,null,null,0,"",{"$f":"IF(I45=Formulario!$K$12,N45+1,N45)","v":46},""]
[46,null,54,null,null,null,null,null,null,null,null,0,"",{"$f":"IF(I46=Formulario!$K$12,N46+1,N46)","v":47},""]
[47,null,55,null,null,null,null,null,null,null,null,0,"",{"$f":"IF(I47=Formulario!$K$12,N47+1,N47)","v":48},""]
[48,null,56,null,null,null,null,null,null,null,null,0,"",{"$f":"IF(I48=Formulario!$K$12,N48+1,N48)","v":49},""]
[49,null,57,null,null,null,null,null,null,null,null,0,"",{"$f":"IF(I49=Formulario!$K$12,N49+1,N49)","v":50},""]
[50,null,58,null,null,null,null,null,null,null,null,0,"",{"$f":"IF(I50=Formulario!$K$12,N50+1,N50)","v":51},""]
[51,null,59,null,null,null,null,null,null,null,null,0,"",{"$f":"IF(I51=Formulario!$K$12,N51+1,N51)","v":52},""]
[52,null,60,null,null,null,null,null,null,null,null,0,"",{"$f":"IF(I52=Formulario!$K$12,N52+1,N52)","v":53},""]
[53,null,61,null,null,null,null,null,null,null,null,0,"",{"$f":"IF(I53=Formulario!$K$12,N53+1,N53)","v":54},""]
[54,null,62,null,null,null,null,null,null,null,null,0,"",{"$f":"IF(I54=Formulario!$K$12,N54+1,N54)","v":55},""]
[55,null,63,null,null,null,null,null,null,null,null,0,"",{"$f":"IF(I55=Formulario!$K$12,N55+1,N55)","v":56},""]
[56,null,64,null,null,null,null,null,null,null,null,0,"",{"$f":"IF(I56=Formulario!$K$12,N56+1,N56)","v":57},""]
[57,null,65,null,null,null,null,null,null,null,null,0,"",{"$f":"IF(I57=Formulario!$K$12,N57+1,N57)","v":58},""]
[58,null,66,null,null,null,null,null,null,null,null,0,"",{"$f":"IF(I58=Formulario!$K$12,N58+1,N58)","v":59},""]
[59,null,67,null,null,null,null,null,null,null,null,0,"",{"$f":"IF(I59=Formulario!$K$12,N59+1,N59)","v":60},""]
[60,null,68,null,null,null,null,null,null,null,null,0,"",{"$f":"IF(I60=Formulario!$K$12,N60+1,N60)","v":61},""]
[61,null,69,null,null,null,null,null,null,null,null,0,"",{"$f":"IF(I61=Formulario!$K$12,N61+1,N61)","v":62},""]
[62,null,70,null,null,null,null,null,null,null,null,0,"",{"$f":"IF(I62=Formulario!$K$12,N62+1,N62)","v":63},""]
[63,null,71,null,null,null,null,null,null,null,null,0,"",{"$f":"IF(I63=Formulario!$K$12,N63+1,N63)","v":64},""]
[64,null,72,null,null,null,null,null,null,null,null,0,"",{"$f":"IF(I64=Formulario!$K$12,N64+1,N64)","v":65},""]
[65,null,73,null,null,null,null,null,null,null,null,0,"",{"$f":"IF(I65=Formulario!$K$12,N65+1,N65)","v":66},""]
[{"$f":"ROW(A66)","v":66},null,74,null,null,null,null,null,null,null,null,{"$f":"IF(I67<>I66,L66+1,L66)","v":0},{"$f":"IF($A67=1,\"\",IF(LOOKUP($A67-1,L:L,I:I)=\"\",\"\",LOOKUP($A67-1,L:L,I:I)))","v":""},{"$f":"IF(I66=Formulario!$K$12,N66+1,N66)","v":67},{"$f":"IF($A67=1,\"\",IF(LOOKUP($A67-1,N:N,J:J)=\"\",\"\",LOOKUP($A67-1,N:N,J:J)))","v":""}]
[67,null,{"$f":"A68+9-1","v":75},null,null,null,null,null,null,null,null,0,"",{"$f":"IF(I67=Formulario!$K$12,N67+1,N67)","v":68},""]
[68,null,76,null,null,null,null,null,null,null,null,0,"",{"$f":"IF(I68=Formulario!$K$12,N68+1,N68)","v":69},""]
[69,null,77,null,null,null,null,null,null,null,null,0,"",{"$f":"IF(I69=Formulario!$K$12,N69+1,N69)","v":70},""]
[70,null,78,null,null,null,null,null,null,null,null,0,"",{"$f":"IF(I70=Formulario!$K$12,N70+1,N70)","v":71},""]
[71,null,79,null,null,null,null,null,null,null,null,0,"",{"$f":"IF(I71=Formulario!$K$12,N71+1,N71)","v":72},""]
[72,null,80,null,null,null,null,null,null,null,null,0,"",{"$f":"IF(I72=Formulario!$K$12,N72+1,N72)","v":73},""]
[73,null,81,null,null,null,null,null,null,null,null,0,"",{"$f":"IF(I73=Formulario!$K$12,N73+1,N73)","v":74},""]
[74,null,82,null,null,null,null,null,null,null,null,0,"",{"$f":"IF(I74=Formulario!$K$12,N74+1,N74)","v":75},""]
[75,null,83,null,null,null,null,null,null,null,null,0,"",{"$f":"IF(I75=Formulario!$K$12,N75+1,N75)","v":76},""]
[76,null,84,null,null,null,null,null,null,null,null,0,"",{"$f":"IF(I76=Formulario!$K$12,N76+1,N76)","v":77},""]
[77,null,85,null,null,null,null,null,null,null,null,0,"",{"$f":"IF(I77=Formulario!$K$12,N77+1,N77)","v":78},""]
[78,null,86,null,null,null,null,null,null,null,null,0,"",{"$f":"IF(I78=Formulario!$K$12,N78+1,N78)","v":79},""]
[79,null,87,null,null,null,null,null,null,null,null,0,"",{"$f":"IF(I79=Formulario!$K$12,N79+1,N79)","v":80},""]
[80,null,88,null,null,null,null,null,null,null,null,0,"",{"$f":"IF(I80=Formulario!$K$12,N80+1,N80)","v":81},""]
[81,null,89,null,null,null,null,null,null,null,null,0,"",{"$f":"IF(I81=Formulario!$K$12,N81+1,N81)","v":82},""]
[82,null,90,null,null,null,null,null,null,null,null,0,"",{"$f":"IF(I82=Formulario!$K$12,N82+1,N82)","v":83},""]
[83,null,null,null,null,null,null,null,null,null,null,0,"",{"$f":"IF(I83=Formulario!$K$12,N83+1,N83)","v":84},""]
[84,null,null,null,null,null,null,null,null,null,null,0,"",{"$f":"IF(I84=Formulario!$K$12,N84+1,N84)","v":85},""]
[85,null,null,null,null,null,null,null,null,null,null,0,"",{"$f":"IF(I85=Formulario!$K$12,N85+1,N85)","v":86},""]
[86,null,null,null,null,null,null,null,null,null,null,0,"",{"$f":"IF(I86=Formulario!$K$12,N86+1,N86)","v":87},""]
[87,null,null,null,null,null,null,null,null,null,null,0,"",{"$f":"IF(I87=Formulario!$K$12,N87+1,N87)","v":88},""]
[88,null,null,null,null,null,null,null,null,null,null,0,"",{"$f":"IF(I88=Formulario!$K$12,N88+1,N88)","v":89},""]
[89,null,null,null,null,null,null,null,null,null,null,0,"",{"$f":"IF(I89=Formulario!$K$12,N89+1,N89)","v":90},""]
[90,null,null,null,null,null,null,null,null,null,null,0,"",{"$f":"IF(I90=Formulario!$K$12,N90+1,N90)","v":91},""]
[91,null,null,null,null,null,null,null,null,null,null,0,"",{"$f":"IF(I91=Formulario!$K$12,N91+1,N91)","v":92},""]
[92,null,null,null,null,null,null,null,null,null,null,0,"",{"$f":"IF(I92=Formulario!$K$12,N92+1,N92)","v":93},""]
[93,null,null,null,null,null,null,null,null,null,null,0,"",{"$f":"IF(I93=Formulario!$K$12,N93+1,N93)","v":94},""]
[94,null,null,null,null,null,null,null,null,null,null,0,"",{"$f":"IF(I94=Formulario!$K$12,N94+1,N94)","v":95},""]
[95,null,null,null,null,null,null,null,null,null,null,0,"",{"$f":"IF(I95=Formulario!$K$12,N95+1,N95)","v":96},""]
[96,null,null,null,null,null,null,null,null,null,null,0,"",{"$f":"IF(I96=Formulario!$K$12,N96+1,N96)","v":97},""]
[97,null,null,null,null,null,null,null,null,null,null,0,"",{"$f":"IF(I97=Formulario!$K$12,N97+1,N97)","v":98},""]
[98,null,null,null,null,null,null,null,null,null,null,0,"",{"$f":"IF(I98=Formulario!$K$12,N98+1,N98)","v":99},""]
[99,null,null,null,null,null,null,null,null,null,null,0,"",{"$f":"IF(I99=Formulario!$K$12,N99+1,N99)","v":100},""]
[100,null,null,null,null,null,null,null,null,null,null,0,"",{"$f":"IF(I100=Formulario!$K$12,N100+1,N100)","v":101},""]
[101,null,null,null,null,null,null,null,null,null,null,0,"",{"$f":"IF(I101=Formulario!$K$12,N101+1,N101)","v":102},""]
[102,null,null,null,null,null,null,null,null,null,null,0,"",{"$f":"IF(I102=Formulario!$K$12,N102+1,N102)","v":103},""]
[103,null,null,null,null,null,null,null,null,null,null,0,"",{"$f":"IF(I103=Formulario!$K$12,N103+1,N103)","v":104},""]
[104,null,null,null,null,null,null,null,null,null,null,0,"",{"$f":"IF(I104=Formulario!$K$12,N104+1,N104)","v":105},""]
[105,null,null,null,null,null,null,null,null,null,null,0,"",{"$f":"IF(I105=Formulario!$K$12,N105+1,N105)","v":106},""]
[106,null,null,null,null,null,null,null,null,null,null,0,"",{"$f":"IF(I106=Formulario!$K$12,N106+1,N106)","v":107},""]
[107,null,null,null,null,null,null,null,null,null,null,0,"",{"$f":"IF(I107=Formulario!$K$12,N107+1,N107)","v":108},""]
[108,null,null,null,null,null,null,null,null,null,null,0,"",{"$f":"IF(I108=Formulario!$K$12,N108+1,N108)","v":109},""]
[109,null,null,null,null,null,null,null,null,null,null,0,"",{"$f":"IF(I109=Formulario!$K$12,N109+1,N109)","v":110},""]
[110,null,null,null,null,null,null,null,null,null,null,0,"",{"$f":"IF(I110=Formulario!$K$12,N110+1,N110)","v":111},""]
[111,null,null,null,null,null,null,null,null,null,null,0,"",{"$f":"IF(I111=Formulario!$K$12,N111+1,N111)","v":112},""]
[112,null,null,null,null,null,null,null,null,null,null,0,"",{"$f":"IF(I112=Formulario!$K$12,N112+1,N112)","v":113},""]
[113,null,null,null,null,null,null,null,null,null,null,0,"",{"$f":"IF(I113=Formulario!$K$12,N113+1,N113)","v":114},""]
[114,null,null,null,null,null,null,null,null,null,null,0,"",{"$f":"IF(I114=Formulario!$K$12,N114+1,N114)","v":115},""]
[115,null,null,null,null,null,null,null,null,null,null,0,"",{"$f":"IF(I115=Formulario!$K$12,N115+1,N115)","v":116},""]
[116,null,null,null,null,null,null,null,null,null,null,0,"",{"$f":"IF(I116=Formulario!$K$12,N116+1,N116)","v":117},""]
[117,null,null,null,null,null,null,null,null,null,null,0,"",{"$f":"IF(I117=Formulario!$K$12,N117+1,N117)","v":118},""]
[118,null,null,null,null,null,null,null,null,null,null,0,"",{"$f":"IF(I118=Formulario!$K$12,N118+1,N118)","v":119},""]
[119,null,null,null,null,null,null,null,null,null,null,0,"",{"$f":"IF(I119=Formulario!$K$12,N119+1,N119)","v":120},""]
[120,null,null,null,null,null,null,null,null,null,null,0,"",{"$f":"IF(I120=Formulario!$K$12,N120+1,N120)","v":121},""]
[121,null,null,null,null,null,null,null,null,null,null,0,"",{"$f":"IF(I121=Formulario!$K$12,N121+1,N121)","v":122},""]
[122,null,null,null,null,null,null,null,null,null,null,0,"",{"$f":"IF(I122=Formulario!$K$12,N122+1,N122)","v":123},""]
[123,null,null,null,null,null,null,null,null,null,null,0,"",{"$f":"IF(I123=Formulario!$K$12,N123+1,N123)","v":124},""]
[124,null,null,null,null,null,null,null,null,null,null,0,"",{"$f":"IF(I124=Formulario!$K$12,N124+1,N124)","v":125},""]
[125,null,null,null,null,null,null,null,null,null,null,0,"",{"$f":"IF(I125=Formulario!$K$12,N125+1,N125)","v":126},""]
[126,null,null,null,null,null,null,null,null,null,null,0,"",{"$f":"IF(I126=Formulario!$K$12,N126+1,N126)","v":127},""]
[127,null,null,null,null,null,null,null,null,null,null,0,"",{"$f":"IF(I127=Formulario!$K$12,N127+1,N127)","v":128},""]
[128,null,null,null,null,null,null,null,null,null,null,0,"",{"$f":"IF(I128=Formulario!$K$12,N128+1,N128)","v":129},""]
[129,null,null,null,null,null,null,null,null,null,null,0,"",{"$f":"IF(I129=Formulario!$K$12,N129+1,N129)","v":130},""]
[{"$f":"ROW(A130)","v":130},null,null,null,null,null,null,null,null,null,null,{"$f":"IF(I131<>I130,L130+1,L130)","v":0},{"$f":"IF($A131=1,\"\",IF(LOOKUP($A131-1,L:L,I:I)=\"\",\"\",LOOKUP($A131-1,L:L,I:I)))","v":""},{"$f":"IF(I130=Formulario!$K$12,N130+1,N130)","v":131},{"$f":"IF($A131=1,\"\",IF(LOOKUP($A131-1,N:N,J:J)=\"\",\"\",LOOKUP($A131-1,N:N,J:J)))","v":""}]
[131,null,null,null,null,null,null,null,null,null,null,0,"",{"$f":"IF(I131=Formulario!$K$12,N131+1,N131)","v":132},""]
[132,null,null,null,null,null,null,null,null,null,null,0,"",{"$f":"IF(I132=Formulario!$K$12,N132+1,N132)","v":133},""]
[133,null,null,null,null,null,null,null,null,null,null,0,"",{"$f":"IF(I133=Formulario!$K$12,N133+1,N133)","v":134},""]
[134,null,null,null,null,null,null,null,null,null,null,0,"",{"$f":"IF(I134=Formulario!$K$12,N134+1,N134)","v":135},""]
[135,null,null,null,null,null,null,null,null,null,null,0,"",{"$f":"IF(I135=Formulario!$K$12,N135+1,N135)","v":136},""]
[136,null,null,null,null,null,null,null,null,null,null,0,"",{"$f":"IF(I136=Formulario!$K$12,N136+1,N136)","v":137},""]
[137,null,null,null,null,null,null,null,null,null,null,0,"",{"$f":"IF(I137=Formulario!$K$12,N137+1,N137)","v":138},""]
[138,null,null,null,null,null,null,null,null,null,null,0,"",{"$f":"IF(I138=Formulario!$K$12,N138+1,N138)","v":139},""]
[139,null,null,null,null,null,null,null,null,null,null,0,"",{"$f":"IF(I139=Formulario!$K$12,N139+1,N139)","v":140},""]
[140,null,null,null,null,null,null,null,null,null,null,0,"",{"$f":"IF(I140=Formulario!$K$12,N140+1,N140)","v":141},""]
[141,null,null,null,null,null,null,null,null,null,null,0,"",{"$f":"IF(I141=Formulario!$K$12,N141+1,N141)","v":142},""]
[142,null,null,null,null,null,null,null,null,null,null,0,"",{"$f":"IF(I142=Formulario!$K$12,N142+1,N142)","v":143},""]
[143,null,null,null,null,null,null,null,null,null,null,0,"",{"$f":"IF(I143=Formulario!$K$12,N143+1,N143)","v":144},""]
[144,null,null,null,null,null,null,null,null,null,null,0,"",{"$f":"IF(I144=Formulario!$K$12,N144+1,N144)","v":145},""]
[145,null,null,null,null,null,null,null,null,null,null,0,"",{"$f":"IF(I145=Formulario!$K$12,N145+1,N145)","v":146},""]
[146,null,null,null,null,null,null,null,null,null,null,0,"",{"$f":"IF(I146=Formulario!$K$12,N146+1,N146)","v":147},""]
[147,null,null,null,null,null,null,null,null,null,null,0,"",{"$f":"IF(I147=Formulario!$K$12,N147+1,N147)","v":148},""]
[148,null,null,null,null,null,null,null,null,null,null,0,"",{"$f":"IF(I148=Formulario!$K$12,N148+1,N148)","v":149},""]
[149,null,null,null,null,null,null,null,null,null,null,0,"",{"$f":"IF(I149=Formulario!$K$12,N149+1,N149)","v":150},""]
[150,null,null,null,null,null,null,null,null,null,null,0,"",{"$f":"IF(I150=Formulario!$K$12,N150+1,N150)","v":151},""]
[151,null,null,null,null,null,null,null,null,null,null,0,"",{"$f":"IF(I151=Formulario!$K$12,N151+1,N151)","v":152},""]
[152,null,null,null,null,null,null,null,null,null,null,0,"",{"$f":"IF(I152=Formulario!$K$12,N152+1,N152)","v":153},""]
[153,null,null,null,null,null,null,null,null,null,null,0,"",{"$f":"IF(I153=Formulario!$K$12,N153+1,N153)","v":154},""]
[154,null,null,null,null,null,null,null,null,null,null,0,"",{"$f":"IF(I154=Formulario!$K$12,N154+1,N154)","v":155},""]
[155,null,null,null,null,null,null,null,null,null,null,0,"",{"$f":"IF(I155=Formulario!$K$12,N155+1,N155)","v":156},""]
[156,null,null,null,null,null,null,null,null,null,null,0,"",{"$f":"IF(I156=Formulario!$K$12,N156+1,N156)","v":157},""]
[157,null,null,null,null,null,null,null,null,null,null,0,"",{"$f":"IF(I157=Formulario!$K$12,N157+1,N157)","v":158},""]
[158,null,null,null,null,null,null,null,null,null,null,0,"",{"$f":"IF(I158=Formulario!$K$12,N158+1,N158)","v":159},""]
[159,null,null,null,null,null,null,null,null,null,null,0,"",{"$f":"IF(I159=Formulario!$K$12,N159+1,N159)","v":160},""]
[160,null,null,null,null,null,null,null,null,null,null,0,"",{"$f":"IF(I160=Formulario!$K$12,N160+1,N160)","v":161},""]
[161,null,null,null,null,null,null,null,null,null,null,0,"",{"$f":"IF(I161=Formulario!$K$12,N161+1,N161)","v":162},""]
[162,null,null,null,null,null,null,null,null,null,null,0,"",{"$f":"IF(I162=Formulario!$K$12,N162+1,N162)","v":163},""]
[163,null,null,null,null,null,null,null,null,null,null,0,"",{"$f":"IF(I163=Formulario!$K$12,N163+1,N163)","v":164},""]
[164,null,null,null,null,null,null,null,null,null,null,0,"",{"$f":"IF(I164=Formulario!$K$12,N164+1,N164)","v":165},""]
[165,null,null,null,null,null,null,null,null,null,null,0,"",{"$f":"IF(I165=Formulario!$K$12,N165+1,N165)","v":166},""]
[166,null,null,null,null,null,null,null,null,null,null,0,"",{"$f":"IF(I166=Formulario!$K$12,N166+1,N166)","v":167},""]
[167,null,null,null,null,null,null,null,null,null,null,0,"",{"$f":"IF(I167=Formulario!$K$12,N167+1,N167)","v":168},""]
[168,null,null,null,null,null,null,null,null,null,null,0,"",{"$f":"IF(I168=Formulario!$K$12,N168+1,N168)","v":169},""]
[169,null,null,null,null,null,null,null,null,null,null,0,"",{"$f":"IF(I169=Formulario!$K$12,N169+1,N169)","v":170},""]
[170,null,null,null,null,null,null,null,null,null,null,0,"",{"$f":"IF(I170=Formulario!$K$12,N170+1,N170)","v":171},""]
[171,null,null,null,null,null,null,null,null,null,null,0,"",{"$f":"IF(I171=Formulario!$K$12,N171+1,N171)","v":172},""]
[172,null,null,null,null,null,null,null,null,null,null,0,"",{"$f":"IF(I172=Formulario!$K$12,N172+1,N172)","v":173},""]
[173,null,null,null,null,null,null,null,null,null,null,0,"",{"$f":"IF(I173=Formulario!$K$12,N173+1,N173)","v":174},""]
[174,null,null,null,null,null,null,null,null,null,null,0,"",{"$f":"IF(I174=Formulario!$K$12,N174+1,N174)","v":175},""]
[175,null,null,null,null,null,null,null,null,null,null,0,"",{"$f":"IF(I175=Formulario!$K$12,N175+1,N175)","v":176},""]
[176,null,null,null,null,null,null,null,null,null,null,0,"",{"$f":"IF(I176=Formulario!$K$12,N176+1,N176)","v":177},""]
[177,null,null,null,null,null,null,null,null,null,null,0,"",{"$f":"IF(I177=Formulario!$K$12,N177+1,N177)","v":178},""]
[178,null,null,null,null,null,null,null,null,null,null,0,"",{"$f":"IF(I178=Formulario!$K$12,N178+1,N178)","v":179},""]
[179,null,null,null,null,null,null,null,null,null,null,0,"",{"$f":"IF(I179=Formulario!$K$12,N179+1,N179)","v":180},""]
[180,null,null,null,null,null,null,null,null,null,null,0,"",{"$f":"IF(I180=Formulario!$K$12,N180+1,N180)","v":181},""]
[181,null,null,null,null,null,null,null,null,null,null,0,"",{"$f":"IF(I181=Formulario!$K$12,N181+1,N181)","v":182},""]
[182,null,null,null,null,null,null,null,null,null,null,0,"",{"$f":"IF(I182=Formulario!$K$12,N182+1,N182)","v":183},""]
[183,null,null,null,null,null,null,null,null,null,null,0,"",{"$f":"IF(I183=Formulario!$K$12,N183+1,N183)","v":184},""]
[184,null,null,null,null,null,null,null,null,null,null,0,"",{"$f":"IF(I184=Formulario!$K$12,N184+1,N184)","v":185},""]
[185,null,null,null,null,null,null,null,null,null,null,0,"",{"$f":"IF(I185=Formulario!$K$12,N185+1,N185)","v":186},""]
[186,null,null,null,null,null,null,null,null,null,null,0,"",{"$f":"IF(I186=Formulario!$K$12,N186+1,N186)","v":187},""]
[187,null,null,null,null,null,null,null,null,null,null,0,"",{"$f":"IF(I187=Formulario!$K$12,N187+1,N187)","v":188},""]
[188,null,null,null,null,null,null,null,null,null,null,0,"",{"$f":"IF(I188=Formulario!$K$12,N188+1,N188)","v":189},""]
[189,null,null,null,null,null,null,null,null,null,null,0,"",{"$f":"IF(I189=Formulario!$K$12,N189+1,N189)","v":190},""]
[190,null,null,null,null,null,null,null,null,null,null,0,"",{"$f":"IF(I190=Formulario!$K$12,N190+1,N190)","v":191},""]
[191,null,null,null,null,null,null,null,null,null,null,0,"",{"$f":"IF(I191=Formulario!$K$12,N191+1,N191)","v":192},""]
[192,null,null,null,null,null,null,null,null,null,null,0,"",{"$f":"IF(I192=Formulario!$K$12,N192+1,N192)","v":193},""]
[193,null,null,null,null,null,null,null,null,null,null,0,"",{"$f":"IF(I193=Formulario!$K$12,N193+1,N193)","v":194},""]
[{"$f":"ROW(A194)","v":194},null,null,null,null,null,null,null,null,null,null,{"$f":"IF(I195<>I194,L194+1,L194)","v":0},{"$f":"IF($A195=1,\"\",IF(LOOKUP($A195-1,L:L,I:I)=\"\",\"\",LOOKUP($A195-1,L:L,I:I)))","v":""},{"$f":"IF(I194=Formulario!$K$12,N194+1,N194)","v":195},{"$f":"IF($A195=1,\"\",IF(LOOKUP($A195-1,N:N,J:J)=\"\",\"\",LOOKUP($A195-1,N:N,J:J)))","v":""}]
[195,null,null,null,null,null,null,null,null,null,null,0,"",{"$f":"IF(I195=Formulario!$K$12,N195+1,N195)","v":196},""]
[196,null,null,null,null,null,null,null,null,null,null,0,"",{"$f":"IF(I196=Formulario!$K$12,N196+1,N196)","v":197},""]
[197,null,null,null,null,null,null,null,null,null,null,0,"",{"$f":"IF(I197=Formulario!$K$12,N197+1,N197)","v":198},""]
[198,null,null,null,null,null,null,null,null,null,null,0,"",{"$f":"IF(I198=Formulario!$K$12,N198+1,N198)","v":199},""]
[199,null,null,null,null,null,null,null,null,null,null,0,"",{"$f":"IF(I199=Formulario!$K$12,N199+1,N199)","v":200},""]
[200,null,null,null,null,null,null,null,null,null,null,0,"",{"$f":"IF(I200=Formulario!$K$12,N200+1,N200)","v":201},""]
[201,null,null,null,null,null,null,null,null,null,null,0,"",{"$f":"IF(I201=Formulario!$K$12,N201+1,N201)","v":202},""]
[202,null,null,null,null,null,null,null,null,null,null,0,"",{"$f":"IF(I202=Formulario!$K$12,N202+1,N202)","v":203},""]
[203,null,null,null,null,null,null,null,null,null,null,0,"",{"$f":"IF(I203=Formulario!$K$12,N203+1,N203)","v":204},""]
[204,null,null,null,null,null,null,null,null,null,null,0,"",{"$f":"IF(I204=Formulario!$K$12,N204+1,N204)","v":205},""]
[205,null,null,null,null,null,null,null,null,null,null,0,"",{"$f":"IF(I205=Formulario!$K$12,N205+1,N205)","v":206},""]
[206,null,null,null,null,null,null,null,null,null,null,0,"",{"$f":"IF(I206=Formulario!$K$12,N206+1,N206)","v":207},""]
[207,null,null,null,null,null,null,null,null,null,null,0,"",{"$f":"IF(I207=Formulario!$K$12,N207+1,N207)","v":208},""]
[208,null,null,null,null,null,null,null,null,null,null,0,"",{"$f":"IF(I208=Formulario!$K$12,N208+1,N208)","v":209},""]
[209,null,null,null,null,null,null,null,null,null,null,0,"",{"$f":"IF(I209=Formulario!$K$12,N209+1,N209)","v":210},""]
[210,null,null,null,null,null,null,null,null,null,null,0,"",{"$f":"IF(I210=Formulario!$K$12,N210+1,N210)","v":211},""]
[211,null,null,null,null,null,null,null,null,null,null,0,"",{"$f":"IF(I211=Formulario!$K$12,N211+1,N211)","v":212},""]
[212,null,null,null,null,null,null,null,null,null,null,0,"",{"$f":"IF(I212=Formulario!$K$12,N212+1,N212)","v":213},""]
[213,null,null,null,null,null,null,null,null,null,null,0,"",{"$f":"IF(I213=Formulario!$K$12,N213+1,N213)","v":214},""]
[214,null,null,null,null,null,null,null,null,null,null,0,"",{"$f":"IF(I214=Formulario!$K$12,N214+1,N214)","v":215},""]
[215,null,null,null,null,null,null,null,null,null,null,0,"",{"$f":"IF(I215=Formulario!$K$12,N215+1,N215)","v":216},""]
[216,null,null,null,null,null,null,null,null,null,null,0,"",{"$f":"IF(I216=Formulario!$K$12,N216+1,N216)","v":217},""]
[217,null,null,null,null,null,null,null,null,null,null,0,"",{"$f":"IF(I217=Formulario!$K$12,N217+1,N217)","v":218},""]
[218,null,null,null,null,null,null,null,null,null,null,0,"",{"$f":"IF(I218=Formulario!$K$12,N218+1,N218)","v":219},""]
[219,null,null,null,null,null,null,null,null,null,null,0,"",{"$f":"IF(I219=Formulario!$K$12,N219+1,N219)","v":220},""]
[220,null,null,null,null,null,null,null,null,null,null,0,"",{"$f":"IF(I220=Formulario!$K$12,N220+1,N220)","v":221},""]
[221,null,null,null,null,null,null,null,null,null,null,0,"",{"$f":"IF(I221=Formulario!$K$12,N221+1,N221)","v":222},""]
[222,null,null,null,null,null,null,null,null,null,null,0,"",{"$f":"IF(I222=Formulario!$K$12,N222+1,N222)","v":223},""]
[223,null,null,null,null,null,null,null,null,null,null,0,"",{"$f":"IF(I223=Formulario!$K$12,N223+1,N223)","v":224},""]
[224,null,null,null,null,null,null,null,null,null,null,0,"",{"$f":"IF(I224=Formulario!$K$12,N224+1,N224)","v":225},""]
[225,null,null,null,null,null,null,null,null,null,null,0,"",{"$f":"IF(I225=Formulario!$K$12,N225+1,N225)","v":226},""]
[226,null,null,null,null,null,null,null,null,null,null,0,"",{"$f":"IF(I226=Formulario!$K$12,N226+1,N226)","v":227},""]
[227,null,null,null,null,null,null,null,null,null,null,0,"",{"$f":"IF(I227=Formulario!$K$12,N227+1,N227)","v":228},""]
[228,null,null,null,null,null,null,null,null,null,null,0,"",{"$f":"IF(I228=Formulario!$K$12,N228+1,N228)","v":229},""]
[229,null,null,null,null,null,null,null,null,null,null,0,"",{"$f":"IF(I229=Formulario!$K$12,N229+1,N229)","v":230},""]
[230,null,null,null,null,null,null,null,null,null,null,0,"",{"$f":"IF(I230=Formulario!$K$12,N230+1,N230)","v":231},""]
[231,null,null,null,null,null,null,null,null,null,null,0,"",{"$f":"IF(I231=Formulario!$K$12,N231+1,N231)","v":232},""]
[232,null,null,null,null,null,null,null,null,null,null,0,"",{"$f":"IF(I232=Formulario!$K$12,N232+1,N232)","v":233},""]
[233,null,null,null,null,null,null,null,null,null,null,0,"",{"$f":"IF(I233=Formulario!$K$12,N233+1,N233)","v":234},""]
[234,null,null,null,null,null,null,null,null,null,null,0,"",{"$f":"IF(I234=Formulario!$K$12,N234+1,N234)","v":235},""]
[235,null,null,null,null,null,null,null,null,null,null,0,"",{"$f":"IF(I235=Formulario!$K$12,N235+1,N235)","v":236},""]
[236,null,null,null,null,null,null,null,null,null,null,0,"",{"$f":"IF(I236=Formulario!$K$12,N236+1,N236)","v":237},""]
[237,null,null,null,null,null,null,null,null,null,null,0,"",{"$f":"IF(I237=Formulario!$K$12,N237+1,N237)","v":238},""]
[238,null,null,null,null,null,null,null,null,null,null,0,"",{"$f":"IF(I238=Formulario!$K$12,N238+1,N238)","v":239},""]
[239,null,null,null,null,null,null,null,null,null,null,0,"",{"$f":"IF(I239=Formulario!$K$12,N239+1,N239)","v":240},""]
[240,null,null,null,null,null,null,null,null,null,null,0,"",{"$f":"IF(I240=Formulario!$K$12,N240+1,N240)","v":241},""]
[241,null,null,null,null,null,null,null,null,null,null,0,"",{"$f":"IF(I241=Formulario!$K$12,N241+1,N241)","v":242},""]
[242,null,null,null,null,null,null,null,null,null,null,0,"",{"$f":"IF(I242=Formulario!$K$12,N242+1,N242)","v":243},""]
[243,null,null,null,null,null,null,null,null,null,null,0,"",{"$f":"IF(I243=Formulario!$K$12,N243+1,N243)","v":244},""]
[244,null,null,null,null,null,null,null,null,null,null,0,"",{"$f":"IF(I244=Formulario!$K$12,N244+1,N244)","v":245},""]
[245,null,null,null,null,null,null,null,null,null,null,0,"",{"$f":"IF(I245=Formulario!$K$12,N245+1,N245)","v":246},""]
[246,null,null,null,null,null,null,null,null,null,null,0,"",{"$f":"IF(I246=Formulario!$K$12,N246+1,N246)","v":247},""]
[247,null,null,null,null,null,null,null,null,null,null,0,"",{"$f":"IF(I247=Formulario!$K$12,N247+1,N247)","v":248},""]
[248,null,null,null,null,null,null,null,null,null,null,0,"",{"$f":"IF(I248=Formulario!$K$12,N248+1,N248)","v":249},""]
[249,null,null,null,null,null,null,null,null,null,null,0,"",{"$f":"IF(I249=Formulario!$K$12,N249+1,N249)","v":250},""]
[250,null,null,null,null,null,null,null,null,null,null,0,"",{"$f":"IF(I250=Formulario!$K$12,N250+1,N250)","v":251},""]
[251,null,null,null,null,null,null,null,null,null,null,0,"",{"$f":"IF(I251=Formulario!$K$12,N251+1,N251)","v":252},""]
[252,null,null,null,null,null,null,null,null,null,null,0,"",{"$f":"IF(I252=Formulario!$K$12,N252+1,N252)","v":253},""]
[253,null,null,null,null,null,null,null,null,null,null,0,"",{"$f":"IF(I253=Formulario!$K$12,N253+1,N253)","v":254},""]
[254,null,null,null,null,null,null,null,null,null,null,0,"",{"$f":"IF(I254=Formulario!$K$12,N254+1,N254)","v":255},""]
[255,null,null,null,null,null,null,null,null,null,null,0,"",{"$f":"IF(I255=Formulario!$K$12,N255+1,N255)","v":256},""]
[256,null,null,null,null,null,null,null,null,null,null,0,"",{"$f":"IF(I256=Formulario!$K$12,N256+1,N256)","v":257},""]
[257,null,null,null,null,null,null,null,null,null,null,0,"",{"$f":"IF(I257=Formulario!$K$12,N257+1,N257)","v":258},""]
[{"$f":"ROW(A258)","v":258},null,null,null,null,null,null,null,null,null,null,{"$f":"IF(I259<>I258,L258+1,L258)","v":0},{"$f":"IF($A259=1,\"\",IF(LOOKUP($A259-1,L:L,I:I)=\"\",\"\",LOOKUP($A259-1,L:L,I:I)))","v":""},{"$f":"IF(I258=Formulario!$K$12,N258+1,N258)","v":259},{"$f":"IF($A259=1,\"\",IF(LOOKUP($A259-1,N:N,J:J)=\"\",\"\",LOOKUP($A259-1,N:N,J:J)))","v":""}]
[259,null,null,null,null,null,null,null,null,null,null,0,"",{"$f":"IF(I259=Formulario!$K$12,N259+1,N259)","v":260},""]
[260,null,null,null,null,null,null,null,null,null,null,0,"",{"$f":"IF(I260=Formulario!$K$12,N260+1,N260)","v":261},""]
[261,null,null,null,null,null,null,null,null,null,null,0,"",{"$f":"IF(I261=Formulario!$K$12,N261+1,N261)","v":262},""]
[262,null,null,null,null,null,null,null,null,null,null,0,"",{"$f":"IF(I262=Formulario!$K$12,N262+1,N262)","v":263},""]
[263,null,null,null,null,null,null,null,null,null,null,0,"",{"$f":"IF(I263=Formulario!$K$12,N263+1,N263)","v":264},""]
[264,null,null,null,null,null,null,null,null,null,null,0,"",{"$f":"IF(I264=Formulario!$K$12,N264+1,N264)","v":265},""]
[265,null,null,null,null,null,null,null,null,null,null,0,"",{"$f":"IF(I265=Formulario!$K$12,N265+1,N265)","v":266},""]
[266,null,null,null,null,null,null,null,null,null,null,0,"",{"$f":"IF(I266=Formulario!$K$12,N266+1,N266)","v":267},""]
[267,null,null,null,null,null,null,null,null,null,null,0,"",{"$f":"IF(I267=Formulario!$K$12,N267+1,N267)","v":268},""]
[268,null,null,null,null,null,null,null,null,null,null,0,"",{"$f":"IF(I268=Formulario!$K$12,N268+1,N268)","v":269},""]
[269,null,null,null,null,null,null,null,null,null,null,0,"",{"$f":"IF(I269=Formulario!$K$12,N269+1,N269)","v":270},""]
[270,null,null,null,null,null,null,null,null,null,null,0,"",{"$f":"IF(I270=Formulario!$K$12,N270+1,N270)","v":271},""]
[271,null,null,null,null,null,null,null,null,null,null,0,"",{"$f":"IF(I271=Formulario!$K$12,N271+1,N271)","v":272},""]
[272,null,null,null,null,null,null,null,null,null,null,0,"",{"$f":"IF(I272=Formulario!$K$12,N272+1,N272)","v":273},""]
[273,null,null,null,null,null,null,null,null,null,null,0,"",{"$f":"IF(I273=Formulario!$K$12,N273+1,N273)","v":274},""]
[274,null,null,null,null,null,null,null,null,null,null,0,"",{"$f":"IF(I274=Formulario!$K$12,N274+1,N274)","v":275},""]
[275,null,null,null,null,null,null,null,null,null,null,0,"",{"$f":"IF(I275=Formulario!$K$12,N275+1,N275)","v":276},""]
[276,null,null,null,null,null,null,null,null,null,null,0,"",{"$f":"IF(I276=Formulario!$K$12,N276+1,N276)","v":277},""]
[277,null,null,null,null,null,null,null,null,null,null,0,"",{"$f":"IF(I277=Formulario!$K$12,N277+1,N277)","v":278},""]
[278,null,null,null,null,null,null,null,null,null,null,0,"",{"$f":"IF(I278=Formulario!$K$12,N278+1,N278)","v":279},""]
[279,null,null,null,null,null,null,null,null,null,null,0,"",{"$f":"IF(I279=Formulario!$K$12,N279+1,N279)","v":280},""]
[280,null,null,null,null,null,null,null,null,null,null,0,"",{"$f":"IF(I280=Formulario!$K$12,N280+1,N280)","v":281},""]
[281,null,null,null,null,null,null,null,null,null,null,0,"",{"$f":"IF(I281=Formulario!$K$12,N281+1,N281)","v":282},""]
[282,null,null,null,null,null,null,null,null,null,null,0,"",{"$f":"IF(I282=Formulario!$K$12,N282+1,N282)","v":283},""]
[283,null,null,null,null,null,null,null,null,null,null,0,"",{"$f":"IF(I283=Formulario!$K$12,N283+1,N283)","v":284},""]
[284,null,null,null,null,null,null,null,null,null,null,0,"",{"$f":"IF(I284=Formulario!$K$12,N284+1,N284)","v":285},""]
[285,null,null,null,null,null,null,null,null,null,null,0,"",{"$f":"IF(I285=Formulario!$K$12,N285+1,N285)","v":286},""]
[286,null,null,null,null,null,null,null,null,null,null,0,"",{"$f":"IF(I286=Formulario!$K$12,N286+1,N286)","v":287},""]
[287,null,null,null,null,null,null,null,null,null,null,0,"",{"$f":"IF(I287=Formulario!$K$12,N287+1,N287)","v":288},""]
[288,null,null,null,null,null,null,null,null,null,null,0,"",{"$f":"IF(I288=Formulario!$K$12,N288+1,N288)","v":289},""]
[289,null,null,null,null,null,null,null,null,null,null,0,"",{"$f":"IF(I289=Formulario!$K$12,N289+1,N289)","v":290},""]
[290,null,null,null,null,null,null,null,null,null,null,0,"",{"$f":"IF(I290=Formulario!$K$12,N290+1,N290)","v":291},""]
[291,null,null,null,null,null,null,null,null,null,null,0,"",{"$f":"IF(I291=Formulario!$K$12,N291+1,N291)","v":292},""]
[292,null,null,null,null,null,null,null,null,null,null,0,"",{"$f":"IF(I292=Formulario!$K$12,N292+1,N292)","v":293},""]
[293,null,null,null,null,null,null,null,null,null,null,0,"",{"$f":"IF(I293=Formulario!$K$12,N293+1,N293)","v":294},""]
[294,null,null,null,null,null,null,null,null,null,null,0,"",{"$f":"IF(I294=Formulario!$K$12,N294+1,N294)","v":295},""]
[295,null,null,null,null,null,null,null,null,null,null,0,"",{"$f":"IF(I295=Formulario!$K$12,N295+1,N295)","v":296},""]
[296,null,null,null,null,null,null,null,null,null,null,0,"",{"$f":"IF(I296=Formulario!$K$12,N296+1,N296)","v":297},""]
[297,null,null,null,null,null,null,null,null,null,null,0,"",{"$f":"IF(I297=Formulario!$K$12,N297+1,N297)","v":298},""]
[298,null,null,null,null,null,null,null,null,null,null,0,"",{"$f":"IF(I298=Formulario!$K$12,N298+1,N298)","v":299},""]
[299,null,null,null,null,null,null,null,null,null,null,0,"",{"$f":"IF(I299=Formulario!$K$12,N299+1,N299)","v":300},""]
[300,null,null,null,null,null,null,null,null,null,null,0,"",{"$f":"IF(I300=Formulario!$K$12,N300+1,N300)","v":301},""]